fUSD/lending_fUSD_20250616
["ID","MTS","AMOUNT","RATE_DAILY","PERIOD"]
[366202724,1750116636486,-490.0,0.00016243,2]
[366202725,1750116636496,-490.0,0.00016243,2]
[366202726,1750116636506,-490.0,0.00016243,2]
[366202727,1750116636516,-504.12,0.00016243,2]
[366202728,1750116636526,-490.0,0.00016243,2]
[366202729,1750116636535,-490.0,0.00016243,2]
[366202730,1750116636545,-490.0,0.00016243,2]
[366202731,1750116636556,-490.0,0.00016243,2]
[366202732,1750116636566,-490.0,0.00016243,2]
[366202733,1750116636577,-490.0,0.00016243,2]
[366202734,1750116636587,-366.23861944,0.00016244,2]
[366202735,1750116636597,-14.57587206,0.00016244,2]
[366202736,1750116636628,-475.42412794,0.00016244,2]
[366202737,1750116636639,-490.0,0.00016244,2]
[366202738,1750116636649,-490.0,0.00016244,2]
[366202739,1750116636659,-490.0,0.00016244,2]
[366202740,1750116636674,-490.0,0.00016244,2]
[366202741,1750116636684,-490.0,0.00016244,2]
[366202742,1750116636694,-490.0,0.00016244,2]
[366202743,1750116636704,-490.0,0.00016244,2]
[366202744,1750116636714,-490.0,0.00016244,2]
[366202745,1750116636724,-490.0,0.00016244,2]
[366202746,1750116636734,-490.0,0.00016244,2]
[366202747,1750116636744,-490.0,0.00016244,2]
[366202748,1750116636755,-490.0,0.00016244,2]
[366202749,1750116636765,-535.42,0.00016244,2]
[366202750,1750116636775,-490.0,0.00016244,2]
[366202751,1750116636786,-490.0,0.00016244,2]
[366202752,1750116636796,-490.0,0.00016244,2]
[366202753,1750116636806,-490.0,0.00016244,2]
[366202754,1750116636815,-490.0,0.00016244,2]
[366202755,1750116636826,-490.0,0.00016244,2]
[366202756,1750116636836,-490.0,0.00016244,2]
[366202757,1750116636845,-490.0,0.00016244,2]
[366202758,1750116636855,-490.0,0.00016244,2]
[366202759,1750116636865,-167.05,0.00016244,2]
[366202760,1750116636874,-490.0,0.00016244,2]
[366202761,1750116636884,-162.75802311,0.00016244,2]
[366202762,1750116636895,-490.0,0.00016244,2]
[366202763,1750116636904,-554.62429998,0.00016245,2]
[366202764,1750116636913,-464.50261238,0.00016245,2]
[366202765,1750116636924,-462.04246298,0.00016245,2]
[366202766,1750116636934,-491.73835565,0.00016245,2]
[366202767,1750116636944,-490.98138024,0.00016245,2]
[366202768,1750116636954,-491.61709719,0.00016245,2]
[366202769,1750116636964,-552.83239407,0.00016245,2]
[366202770,1750116636973,-490.0,0.00016245,2]
[366202771,1750116636983,-491.83387074,0.00016245,2]
[366202772,1750116636993,-491.13706412,0.00016245,2]
[366202773,1750116637004,-490.95420897,0.00016245,2]
[366202774,1750116637015,-257.80339513,0.00016245,2]
[366202775,1750116637024,-491.06223014,0.00016245,2]
[366202776,1750116637034,-490.77338918,0.00016245,2]
[366202777,1750116637043,-490.0,0.00016245,2]
[366202778,1750116637055,-93.06536299,0.00016245,2]
[366202779,1750116637068,-457.95260682,0.00016245,2]
[366202780,1750116637079,-490.0,0.00016245,2]
[366202781,1750116637089,-200.0,0.00016245,2]
[366202782,1750116637100,-558.94739328,0.00016247,2]
[366202783,1750116637112,-100.67755622,0.00016247,2]
[366202784,1750116637122,-150.0,0.00016252,2]
[366202785,1750116637142,-52.83380202,0.00016253,2]
[366202786,1750116638247,-490.0,0.00016219,2]
[366202787,1750116638257,-97.16619798,0.00016253,2]
[366202788,1750116638268,-56.63380167,0.00016264,2]
[366202789,1750116638280,-93.36619833,0.00016264,2]
[366202790,1750116638290,-554.62429998,0.00016279,2]
[366202791,1750116638300,-302.19854947,0.00016284,2]
[366202792,1750116638344,-3180.60088725,0.00016284,2]
[366202793,1750116638354,-150.0,0.00016285,2]
[366202794,1750116638367,-2576.96604137,0.00016293,2]
[366202795,1750116638379,-1097.72008883,0.00016293,2]
[366202796,1750116638390,-165.76338231,0.00016296,2]
[366202797,1750116638400,-1379.46597911,0.000163,2]
[366202798,1750116638412,-724.94402089,0.000163,2]
[366202799,1750116638422,-150.0,0.00016312,2]
[366202800,1750116638432,-554.62429998,0.00016314,2]
[366202801,1750116638443,-212.348748,0.00016323,2]
[366202802,1750116638454,-289.969451,0.00016323,2]
[366202803,1750116638463,-150.0,0.00016333,2]
[366202804,1750116638473,-554.62429998,0.00016348,2]
[366202805,1750116638483,-3482.79943669,0.00016352,2]
[366202806,1750116638496,-150.0,0.00016376,2]
[366202807,1750116638508,-730.68974346,0.00016379,2]
[366202809,1750116638596,-151.0,0.00015704,2]
[366202810,1750116638607,-1137.78750001,0.00016379,2]
[366202830,1750116640580,-490.0,0.00016242,2]
[366202831,1750116640590,-490.0,0.00016242,2]
[366202832,1750116640605,-490.0,0.00016243,2]
[366202833,1750116640615,-1806.20888673,0.00016379,2]
[366202834,1750116640626,-554.62429998,0.00016383,2]
[366202835,1750116640636,-491.72,0.00016384,2]
[366202836,1750116640647,-490.0,0.00016384,2]
[366202837,1750116640657,-490.0,0.00016384,2]
[366202838,1750116640668,-203.94,0.00016384,2]
[366202839,1750116640679,-184.07,0.00016384,2]
[366202840,1750116640689,-490.0,0.00016384,2]
[366202841,1750116640699,-539.74,0.00016384,2]
[366202842,1750116640710,-490.0,0.00016384,2]
[366202843,1750116640947,-490.0,0.00016384,2]
[366202844,1750116640962,-490.0,0.00016384,2]
[366202845,1750116640973,-497.74,0.00016384,2]
[366202846,1750116640983,-587.35,0.00016384,2]
[366202847,1750116640993,-490.0,0.00016384,2]
[366202848,1750116641003,-490.0,0.00016384,2]
[366202849,1750116641017,-490.0,0.00016384,2]
[366202850,1750116641027,-490.0,0.00016384,2]
[366202851,1750116641037,-490.0,0.00016384,2]
[366202852,1750116641047,-490.0,0.00016384,2]
[366202853,1750116641060,-490.0,0.00016384,2]
[366202854,1750116641070,-490.0,0.00016384,2]
[366202855,1750116641080,-474.91260698,0.00016384,2]
[366202856,1750116641090,-490.0,0.00016384,2]
[366202857,1750116641100,-1238.91,0.00016384,2]
[366202858,1750116641110,-567.25,0.00016384,2]
[366202859,1750116641121,-490.0,0.00016384,2]
[366202860,1750116641131,-490.0,0.00016384,2]
[366202861,1750116641141,-1035.4,0.00016384,2]
[366202862,1750116641150,-490.0,0.00016384,2]
[366202863,1750116641160,-500.97,0.00016384,2]
[366202864,1750116641170,-490.0,0.00016384,2]
[366202865,1750116641180,-596.48,0.00016384,2]
[366202866,1750116641191,-490.0,0.00016384,2]
[366202867,1750116641201,-490.0,0.00016384,2]
[366202868,1750116641211,-490.0,0.00016384,2]
[366202869,1750116641221,-490.0,0.00016384,2]
[366202870,1750116641231,-490.0,0.00016384,2]
[366202871,1750116641241,-490.0,0.00016384,2]
[366202872,1750116641251,-561.83,0.00016384,2]
[366202873,1750116641262,-490.0,0.00016384,2]
[366202874,1750116641272,-3771.91,0.00016384,2]
[366202875,1750116641282,-490.0,0.00016384,2]
[366202876,1750116641292,-490.0,0.00016384,2]
[366202877,1750116641302,-1050.49,0.00016384,2]
[366202878,1750116641312,-490.0,0.00016384,2]
[366202879,1750116641322,-1715.78,0.00016384,2]
[366202880,1750116641331,-490.0,0.00016384,2]
[366202881,1750116641342,-266.16701606,0.00016384,2]
[366202882,1750116641351,-807.51,0.00016384,2]
[366202883,1750116641361,-714.56,0.00016384,2]
[366202884,1750116641372,-490.0,0.00016384,2]
[366202885,1750116641381,-1935.41,0.00016384,2]
[366202886,1750116641391,-490.0,0.00016384,2]
[366202887,1750116641411,-490.0,0.00016384,2]
[366202888,1750116641424,-490.0,0.00016384,2]
[366202889,1750116641435,-490.0,0.00016384,2]
[366202890,1750116641445,-490.0,0.00016384,2]
[366202891,1750116641456,-490.0,0.00016384,2]
[366202892,1750116641467,-680.58,0.00016384,2]
[366202893,1750116641478,-490.0,0.00016384,2]
[366202894,1750116641489,-490.0,0.00016384,2]
[366202895,1750116641499,-490.0,0.00016384,2]
[366202896,1750116641510,-490.0,0.00016384,2]
[366202897,1750116641521,-490.0,0.00016384,2]
[366202898,1750116641532,-593.97,0.00016384,2]
[366202899,1750116641544,-490.0,0.00016384,2]
[366202900,1750116641555,-490.0,0.00016384,2]
[366202901,1750116641566,-490.0,0.00016384,2]
[366202902,1750116641577,-490.0,0.00016384,2]
[366202903,1750116641589,-490.0,0.00016384,2]
[366202904,1750116641600,-933.79,0.00016384,2]
[366202905,1750116641610,-490.0,0.00016384,2]
[366202906,1750116641622,-490.0,0.00016384,2]
[366202907,1750116641632,-490.0,0.00016384,2]
[366202908,1750116641642,-606.85,0.00016384,2]
[366202909,1750116641653,-558.15,0.00016384,2]
[366202910,1750116641663,-773.63,0.00016384,2]
[366202911,1750116641675,-490.0,0.00016384,2]
[366202912,1750116641685,-556.87,0.00016384,2]
[366202913,1750116641696,-490.0,0.00016384,2]
[366202914,1750116641707,-490.0,0.00016384,2]
[366202915,1750116641718,-490.0,0.00016384,2]
[366202916,1750116641729,-490.0,0.00016384,2]
[366202917,1750116641740,-490.0,0.00016384,2]
[366202918,1750116641750,-490.0,0.00016384,2]
[366202919,1750116641761,-632.8,0.00016384,2]
[366202920,1750116641771,-490.0,0.00016384,2]
[366202921,1750116641782,-490.0,0.00016384,2]
[366202922,1750116641792,-490.0,0.00016384,2]
[366202923,1750116641805,-490.0,0.00016384,2]
[366202924,1750116641816,-248.81775266,0.00016384,2]
[366202925,1750116641827,-490.0,0.00016384,2]
[366202926,1750116641843,-490.0,0.00016384,2]
[366202927,1750116641855,-601.08,0.00016384,2]
[366202928,1750116641867,-490.0,0.00016384,2]
[366202929,1750116641879,-1230.38,0.00016384,2]
[366202930,1750116641890,-3274.3,0.00016384,2]
[366202931,1750116641901,-490.0,0.00016384,2]
[366202932,1750116641913,-490.89986222,0.00016396,2]
[366202933,1750116641924,-491.43154308,0.00016396,2]
[366202934,1750116641935,-490.0,0.00016396,2]
[366202935,1750116641946,-490.0,0.00016396,2]
[366202936,1750116641957,-490.0,0.00016396,2]
[366202937,1750116641968,-356.78471372,0.00016396,2]
[366202938,1750116641979,-490.0,0.00016396,2]
[366202939,1750116641989,-490.0,0.00016396,2]
[366202940,1750116642000,-490.0,0.00016396,2]
[366202941,1750116642014,-490.0,0.00016396,2]
[366202942,1750116642025,-490.0,0.00016396,2]
[366202943,1750116642035,-490.0,0.00016396,2]
[366202944,1750116642045,-490.0,0.00016396,2]
[366202945,1750116642057,-560.28,0.00016396,2]
[366202946,1750116642068,-490.0,0.00016396,2]
[366202947,1750116642078,-490.0,0.00016396,2]
[366202948,1750116642090,-490.0,0.00016396,2]
[366202949,1750116642101,-574.51914278,0.00016396,2]
[366202950,1750116642111,-490.0,0.00016396,2]
[366202951,1750116642122,-536.3,0.00016396,2]
[366202952,1750116642133,-498.43,0.00016396,2]
[366202953,1750116642143,-935.63,0.00016396,2]
[366202954,1750116642154,-490.0,0.00016396,2]
[366202955,1750116642165,-599.74,0.00016396,2]
[366202956,1750116642175,-287.58419969,0.00016396,2]
[366202957,1750116642186,-490.0,0.00016396,2]
[366202958,1750116642196,-527.9,0.00016396,2]
[366202959,1750116642207,-490.0,0.00016396,2]
[366202960,1750116642218,-490.0,0.00016396,2]
[366202961,1750116642228,-490.0,0.00016396,2]
[366202962,1750116642239,-630.7919443,0.00016396,2]
[366202963,1750116642250,-490.0,0.00016396,2]
[366202964,1750116642261,-501.5884093,0.00016396,2]
[366202965,1750116642271,-495.9743627,0.00016396,2]
[366202966,1750116642287,-490.0,0.00016396,2]
[366202967,1750116642298,-490.0,0.00016396,2]
[366202968,1750116642316,-499.4664432,0.00016396,2]
[366202969,1750116642328,-550.32,0.00016396,2]
[366202970,1750116642338,-490.0,0.00016396,2]
[366202971,1750116642349,-492.96404145,0.00016396,2]
[366202972,1750116642360,-490.0,0.00016396,2]
[366202973,1750116642371,-490.0,0.00016396,2]
[366202974,1750116642382,-490.0,0.00016396,2]
[366202975,1750116642394,-1000.0,0.00016396,2]
[366202976,1750116642404,-490.0,0.00016396,2]
[366202977,1750116642415,-490.0,0.00016396,2]
[366202978,1750116642426,-442.8509002,0.00016396,2]
[366202979,1750116642438,-490.0,0.00016396,2]
[366202980,1750116642449,-494.48492522,0.00016396,2]
[366202981,1750116642459,-494.91927007,0.00016396,2]
[366202982,1750116642470,-493.24719607,0.00016396,2]
[366202983,1750116642480,-496.76247948,0.00016396,2]
[366202984,1750116642491,-218.07230977,0.00016396,2]
[366202985,1750116642500,-490.0,0.00016396,2]
[366202986,1750116642511,-490.0,0.00016396,2]
[366202987,1750116642521,-490.0,0.00016396,2]
[366202988,1750116642531,-490.0,0.00016396,2]
[366202989,1750116642541,-492.57497512,0.00016396,2]
[366202990,1750116642551,-495.7751582,0.00016396,2]
[366202991,1750116642562,-490.0,0.00016396,2]
[366202992,1750116642572,-490.0,0.00016396,2]
[366202993,1750116642582,-490.0,0.00016396,2]
[366202994,1750116642592,-490.0,0.00016396,2]
[366202995,1750116642603,-490.0,0.00016396,2]
[366202996,1750116642613,-490.0,0.00016396,2]
[366202997,1750116642624,-495.3265699,0.00016396,2]
[366202998,1750116642635,-497.29578485,0.00016396,2]
[366202999,1750116642645,-500.0322743,0.00016396,2]
[366203000,1750116642655,-492.02926791,0.00016396,2]
[366203001,1750116642665,-492.81299194,0.00016396,2]
[366203002,1750116642676,-501.37834248,0.00016396,2]
[366203003,1750116642686,-577.85,0.00016396,2]
[366203004,1750116642697,-490.0,0.00016396,2]
[366203005,1750116642707,-270.79461887,0.00016396,2]
[366203006,1750116642717,-490.0,0.00016396,2]
[366203007,1750116642728,-490.0,0.00016396,2]
[366203008,1750116642743,-490.0,0.00016396,2]
[366203009,1750116642754,-490.0,0.00016396,2]
[366203010,1750116642764,-490.0,0.00016396,2]
[366203011,1750116642775,-498.50456846,0.00016396,2]
[366203012,1750116642785,-490.0,0.00016396,2]
[366203013,1750116642797,-606.44,0.00016396,2]
[366203014,1750116642808,-634.85765055,0.00016396,2]
[366203015,1750116642818,-490.0,0.00016396,2]
[366203016,1750116642830,-496.10104014,0.00016396,2]
[366203017,1750116642840,-496.69043899,0.00016396,2]
[366203018,1750116642851,-492.35800653,0.00016396,2]
[366203019,1750116642861,-566.87,0.00016396,2]
[366203020,1750116642872,-522.21,0.00016396,2]
[366203021,1750116642883,-490.0,0.00016396,2]
[366203022,1750116642895,-569.06,0.00016396,2]
[366203023,1750116642905,-490.0,0.00016396,2]
[366203024,1750116642915,-490.0,0.00016396,2]
[366203025,1750116642924,-490.0,0.00016396,2]
[366203026,1750116642934,-490.0,0.00016396,2]
[366203027,1750116642944,-490.0,0.00016396,2]
[366203028,1750116642954,-490.0,0.00016396,2]
[366203029,1750116642965,-560.66,0.00016396,2]
[366203030,1750116642976,-620.71,0.00016396,2]
[366203031,1750116642986,-490.0,0.00016396,2]
[366203033,1750116642996,-572.78,0.00016396,2]
[366203034,1750116643009,-490.0,0.00016396,2]
[366203035,1750116643019,-490.0,0.00016396,2]
[366203036,1750116643029,-490.0,0.00016396,2]
[366203037,1750116643040,-555.53,0.00016396,2]
[366203039,1750116643051,-490.0,0.00016396,2]
[366203041,1750116643061,-490.0,0.00016396,2]
[366203043,1750116643071,-541.91,0.00016396,2]
[366203045,1750116643082,-490.0,0.00016396,2]
[366203047,1750116643092,-595.49,0.00016396,2]
[366203049,1750116643102,-490.0,0.00016396,2]
[366203051,1750116643112,-497.89154998,0.00016396,2]
[366203053,1750116643122,-506.81,0.00016396,2]
[366203055,1750116643134,-579.9895855,0.00016396,2]
[366203057,1750116643144,-490.0,0.00016396,2]
[366203058,1750116643154,-490.0,0.00016396,2]
[366203059,1750116643164,-490.0,0.00016396,2]
[366203060,1750116643174,-495.82,0.00016396,2]
[366203064,1750116643194,-559.31,0.00016396,2]
[366203067,1750116643207,-558.41998348,0.00016396,2]
[366203069,1750116643217,-493.87499641,0.00016396,2]
[366203071,1750116643228,-491.82908997,0.00016396,2]
[366203073,1750116643238,-490.0,0.00016396,2]
[366203075,1750116643248,-490.0,0.00016396,2]
[366203077,1750116643258,-490.0,0.00016396,2]
[366203080,1750116643268,-490.0,0.00016396,2]
[366203082,1750116643278,-490.0,0.00016396,2]
[366203084,1750116643288,-490.0,0.00016396,2]
[366203086,1750116643298,-490.0,0.00016396,2]
[366203088,1750116643308,-490.0,0.00016396,2]
[366203091,1750116643318,-495.31970123,0.00016396,2]
[366203093,1750116643327,-493.57149374,0.00016396,2]
[366203095,1750116643338,-490.0,0.00016396,2]
[366203097,1750116643347,-490.0,0.00016396,2]
[366203099,1750116643358,-490.0,0.00016396,2]
[366203101,1750116643368,-490.0,0.00016396,2]
[366203103,1750116643378,-353.6319465,0.00016396,2]
[366203105,1750116643389,-490.0,0.00016396,2]
[366203138,1750116643801,-490.0,0.00016396,2]
[366203140,1750116643814,-498.52336618,0.00016396,2]
[366203142,1750116643825,-490.0,0.00016396,2]
[366203143,1750116643835,-490.0,0.00016396,2]
[366203144,1750116643846,-490.0,0.00016396,2]
[366203145,1750116643856,-490.0,0.00016396,2]
[366203146,1750116643866,-490.0,0.00016396,2]
[366203147,1750116643876,-505.7,0.00016396,2]
[366203148,1750116643886,-490.0,0.00016396,2]
[366203149,1750116643896,-490.0,0.00016396,2]
[366203150,1750116643906,-591.64,0.00016396,2]
[366203151,1750116643916,-490.0,0.00016396,2]
[366203152,1750116643926,-490.0,0.00016396,2]
[366203153,1750116643936,-490.0,0.00016396,2]
[366203154,1750116643946,-490.0,0.00016396,2]
[366203155,1750116643956,-492.24058345,0.00016396,2]
[366203156,1750116643966,-490.0,0.00016396,2]
[366203157,1750116643976,-490.0,0.00016396,2]
[366203158,1750116643986,-492.2202246,0.00016396,2]
[366203159,1750116643996,-490.0,0.00016396,2]
[366203160,1750116644006,-490.0,0.00016396,2]
[366203161,1750116644018,-490.0,0.00016396,2]
[366203162,1750116644028,-492.63877418,0.00016396,2]
[366203163,1750116644038,-496.39138524,0.00016396,2]
[366203164,1750116644048,-490.0,0.00016396,2]
[366203165,1750116644058,-490.0,0.00016396,2]
[366203166,1750116644068,-490.0,0.00016396,2]
[366203167,1750116644078,-490.0,0.00016396,2]
[366203168,1750116644089,-490.0,0.00016396,2]
[366203169,1750116644098,-490.0,0.00016396,2]
[366203170,1750116644108,-490.0,0.00016396,2]
[366203171,1750116644118,-490.0,0.00016396,2]
[366203172,1750116644128,-490.0,0.00016396,2]
[366203173,1750116644138,-490.0,0.00016396,2]
[366203174,1750116644148,-545.44,0.00016396,2]
[366203175,1750116644158,-490.0,0.00016396,2]
[366203176,1750116644167,-490.0,0.00016396,2]
[366203177,1750116644178,-490.0,0.00016396,2]
[366203178,1750116644187,-490.0,0.00016396,2]
[366203179,1750116644197,-568.49,0.00016396,2]
[366203180,1750116644207,-490.0,0.00016396,2]
[366203181,1750116644217,-490.0,0.00016396,2]
[366203182,1750116644227,-490.0,0.00016396,2]
[366203183,1750116644238,-490.0,0.00016396,2]
[366203184,1750116644248,-490.0,0.00016396,2]
[366203185,1750116644259,-490.0,0.00016396,2]
[366203186,1750116644269,-234.41488933,0.00016396,2]
[366203187,1750116644280,-490.0,0.00016396,2]
[366203188,1750116644289,-375.12382837,0.00016396,2]
[366203189,1750116644299,-490.0,0.00016396,2]
[366203190,1750116644311,-636.73,0.00016396,2]
[366203191,1750116644321,-490.0,0.00016396,2]
[366203192,1750116644331,-490.0,0.00016396,2]
[366203193,1750116644342,-490.0,0.00016396,2]
[366203194,1750116644351,-490.0,0.00016396,2]
[366203195,1750116644361,-490.0,0.00016396,2]
[366203196,1750116644371,-562.94,0.00016396,2]
[366203197,1750116644381,-490.0,0.00016396,2]
[366203198,1750116644391,-490.0,0.00016396,2]
[366203199,1750116644400,-490.0,0.00016396,2]
[366203200,1750116644410,-490.0,0.00016396,2]
[366203201,1750116644420,-490.0,0.00016396,2]
[366203202,1750116644430,-490.0,0.00016396,2]
[366203203,1750116644440,-490.0,0.00016396,2]
[366203204,1750116644450,-490.0,0.00016396,2]
[366203205,1750116644460,-390.12107146,0.00016396,2]
[366203206,1750116644471,-490.0,0.00016396,2]
[366203207,1750116644481,-1000.0,0.00016396,2]
[366203208,1750116644491,-492.40480381,0.00016396,2]
[366203209,1750116644500,-490.0,0.00016396,2]
[366203210,1750116644510,-490.0,0.00016396,2]
[366203211,1750116644520,-383.83366681,0.00016396,2]
[366203212,1750116644530,-490.0,0.00016396,2]
[366203213,1750116644540,-490.0,0.00016396,2]
[366203214,1750116644551,-521.40928304,0.00016396,2]
[366203215,1750116644562,-490.0,0.00016396,2]
[366203216,1750116644572,-490.0,0.00016396,2]
[366203217,1750116644583,-490.0,0.00016396,2]
[366203218,1750116644592,-490.0,0.00016396,2]
[366203219,1750116644602,-490.0,0.00016396,2]
[366203220,1750116644612,-490.25944667,0.00016396,2]
[366203221,1750116644622,-335.52331146,0.00016396,2]
[366203222,1750116644631,-490.0,0.00016396,2]
[366203223,1750116644642,-490.0,0.00016396,2]
[366203224,1750116644653,-490.0,0.00016396,2]
[366203225,1750116644662,-490.0,0.00016396,2]
[366203226,1750116644672,-490.0,0.00016396,2]
[366203227,1750116644682,-490.0,0.00016396,2]
[366203228,1750116644692,-490.0,0.00016396,2]
[366203229,1750116644702,-490.0,0.00016396,2]
[366203230,1750116644711,-490.0,0.00016396,2]
[366203231,1750116644721,-490.0,0.00016396,2]
[366203232,1750116644730,-490.0,0.00016396,2]
[366203233,1750116644740,-564.06172357,0.00016396,2]
[366203234,1750116644750,-490.0,0.00016396,2]
[366203235,1750116644760,-490.0,0.00016396,2]
[366203236,1750116644769,-490.0,0.00016396,2]
[366203237,1750116644779,-578.53,0.00016396,2]
[366203238,1750116644789,-490.0,0.00016396,2]
[366203239,1750116644799,-490.0,0.00016396,2]
[366203240,1750116644809,-490.0,0.00016396,2]
[366203241,1750116644822,-490.0,0.00016396,2]
[366203242,1750116644832,-490.0,0.00016396,2]
[366203243,1750116644842,-490.0,0.00016396,2]
[366203244,1750116644851,-490.0,0.00016396,2]
[366203245,1750116644861,-489.35303997,0.00016396,2]
[366203246,1750116644871,-490.0,0.00016396,2]
[366203247,1750116644881,-154.10742376,0.00016396,2]
[366203248,1750116644891,-208.78,0.00016396,2]
[366203249,1750116644901,-490.0,0.00016396,2]
[366203250,1750116644911,-490.0,0.00016396,2]
[366203251,1750116644920,-179.5,0.00016396,2]
[366203252,1750116644930,-490.0,0.00016396,2]
[366203253,1750116644939,-314.08,0.00016396,2]
[366203254,1750116644949,-531.01,0.00016396,2]
[366203255,1750116644960,-491.20140547,0.00016396,2]
[366203256,1750116644970,-490.0,0.00016396,2]
[366203257,1750116644979,-526.4604166,0.00016396,2]
[366203258,1750116644989,-490.0,0.00016396,2]
[366203259,1750116644999,-490.0,0.00016396,2]
[366203260,1750116645012,-490.0,0.00016396,2]
[366203261,1750116645024,-490.0,0.00016396,2]
[366203262,1750116645033,-490.0,0.00016396,2]
[366203263,1750116645043,-490.0,0.00016396,2]
[366203264,1750116645052,-564.27,0.00016396,2]
[366203265,1750116645062,-596.56,0.00016396,2]
[366203266,1750116645072,-600.4,0.00016396,2]
[366203267,1750116645081,-490.0,0.00016396,2]
[366203268,1750116645091,-490.0,0.00016396,2]
[366203269,1750116645101,-500.0,0.00016396,2]
[366203270,1750116645110,-490.0,0.00016396,2]
[366203271,1750116645119,-490.0,0.00016396,2]
[366203272,1750116645129,-490.0,0.00016396,2]
[366203273,1750116645139,-490.0,0.00016396,2]
[366203274,1750116645149,-396.93101553,0.00016396,2]
[366203275,1750116645158,-424.3,0.00016396,2]
[366203276,1750116645168,-490.0,0.00016396,2]
[366203277,1750116645178,-490.0,0.00016396,2]
[366203278,1750116645188,-532.33013157,0.00016396,2]
[366203279,1750116645198,-490.0,0.00016396,2]
[366203280,1750116645208,-490.0,0.00016396,2]
[366203281,1750116645217,-490.0,0.00016396,2]
[366203282,1750116645227,-490.0,0.00016396,2]
[366203283,1750116645236,-490.0,0.00016396,2]
[366203284,1750116645246,-490.0,0.00016396,2]
[366203285,1750116645255,-174.0,0.00016396,2]
[366203286,1750116645265,-490.0,0.00016396,2]
[366203287,1750116645274,-342.40144143,0.00016396,2]
[366203288,1750116645284,-490.0,0.00016396,2]
[366203289,1750116645294,-164.8,0.00016396,2]
[366203290,1750116645303,-490.0,0.00016396,2]
[366203291,1750116645312,-490.0,0.00016396,2]
[366203292,1750116645322,-630.97,0.00016396,2]
[366203293,1750116645332,-490.0,0.00016396,2]
[366203294,1750116645342,-490.0,0.00016396,2]
[366203295,1750116645352,-490.0,0.00016396,2]
[366203296,1750116645362,-490.0,0.00016396,2]
[366203297,1750116645371,-490.0,0.00016396,2]
[366203298,1750116645381,-492.56146032,0.00016396,2]
[366203299,1750116645390,-490.0,0.00016396,2]
[366203300,1750116645400,-490.0,0.00016396,2]
[366203301,1750116645410,-490.0,0.00016396,2]
[366203302,1750116645419,-490.0,0.00016396,2]
[366203303,1750116645429,-498.39157963,0.00016396,2]
[366203304,1750116645438,-567.99,0.00016396,2]
[366203305,1750116645448,-490.0,0.00016396,2]
[366203306,1750116645457,-496.05737498,0.00016396,2]
[366203307,1750116645467,-490.0,0.00016396,2]
[366203308,1750116645476,-490.0,0.00016396,2]
[366203309,1750116645486,-490.0,0.00016396,2]
[366203310,1750116645496,-490.0,0.00016396,2]
[366203311,1750116645505,-490.0,0.00016396,2]
[366203312,1750116645515,-490.0,0.00016396,2]
[366203313,1750116645524,-490.0,0.00016396,2]